Workbook

Sheet עלויות השיפוץ
B1: גליון עבודה של עלויות שיפוץ המטבח
B3: קטגוריה | C3: פריטים | D3: כמות | E3: עלות משוערת | F3: עלות בפועל | G3: עלות משוערת כוללת | H3: עלות כוללת בפועל
B4: ארונות | C4: ארונות שירות: מודולרי-סטנדרטי (כמות ביחידת רגל ליניארי) | D4: 25 | E4: ₪ 5.00 | G4: =נתונים[[#This Row],[כמות]]*נתונים[[#This Row],[עלות משוערת]] -> ₪ 125 | H4: =נתונים[[#This Row],[כמות]]*נתונים[[#This Row],[עלות בפועל]] -> ₪ 0
B5: ארונות | C5: ארונות עליונים: מודולרי-סטנדרטי (כמות ביחידת רגל ליניארי) | D5: 25 | E5: ₪ 3.50 | G5: =נתונים[[#This Row],[כמות]]*נתונים[[#This Row],[עלות משוערת]] -> ₪ 88 | H5: =נתונים[[#This Row],[כמות]]*נתונים[[#This Row],[עלות בפועל]] -> ₪ 0
B6: מכשירי ניקוי | C6: מדיח כלים: סטנדרטי | D6: 1 | E6: ₪ 250.00 | G6: =נתונים[[#This Row],[כמות]]*נתונים[[#This Row],[עלות משוערת]] -> ₪ 250 | H6: =נתונים[[#This Row],[כמות]]*נתונים[[#This Row],[עלות בפועל]] -> ₪ 0
B7: מכשירי ניקוי | C7: סילוק אשפה: סטנדרטי | D7: 1 | E7: ₪ 175.00 | G7: =נתונים[[#This Row],[כמות]]*נתונים[[#This Row],[עלות משוערת]] -> ₪ 175 | H7: =נתונים[[#This Row],[כמות]]*נתונים[[#This Row],[עלות בפועל]] -> ₪ 0
B8: מכשירי אפייה | C8: תנור מטבח: הזזה - סטנדרטי | D8: 1 | E8: ₪ 375.00 | G8: =נתונים[[#This Row],[כמות]]*נתונים[[#This Row],[עלות משוערת]] -> ₪ 375 | H8: =נתונים[[#This Row],[כמות]]*נתונים[[#This Row],[עלות בפועל]] -> ₪ 0
B9: מכשירי אפייה | C9: מיקרוגל: סטנדרטי | D9: 1 | E9: ₪ 300.00 | G9: =נתונים[[#This Row],[כמות]]*נתונים[[#This Row],[עלות משוערת]] -> ₪ 300 | H9: =נתונים[[#This Row],[כמות]]*נתונים[[#This Row],[עלות בפועל]] -> ₪ 0
B10: דלפקים | C10: שיש יצוק (כמות ביחידת רגל ליניארי) | D10: 23 | E10: ₪ 10.00 | G10: =נתונים[[#This Row],[כמות]]*נתונים[[#This Row],[עלות משוערת]] -> ₪ 230 | H10: =נתונים[[#This Row],[כמות]]*נתונים[[#This Row],[עלות בפועל]] -> ₪ 0
B11: דלתות | C11: פנים: ציפוי משובח | D11: 1 | E11: ₪ 65.00 | G11: =נתונים[[#This Row],[כמות]]*נתונים[[#This Row],[עלות משוערת]] -> ₪ 65 | H11: =נתונים[[#This Row],[כמות]]*נתונים[[#This Row],[עלות בפועל]] -> ₪ 0
B12: תוספות | C12: תוספות: מים חמים באופן מיידי - סטנדרטי | D12: 1 | E12: ₪ 120.00 | G12: =נתונים[[#This Row],[כמות]]*נתונים[[#This Row],[עלות משוערת]] -> ₪ 120 | H12: =נתונים[[#This Row],[כמות]]*נתונים[[#This Row],[עלות בפועל]] -> ₪ 0
B13: תוספות | C13: תוספות: מתקן סבון | D13: 1 | E13: ₪ 40.00 | G13: =נתונים[[#This Row],[כמות]]*נתונים[[#This Row],[עלות משוערת]] -> ₪ 40 | H13: =נתונים[[#This Row],[כמות]]*נתונים[[#This Row],[עלות בפועל]] -> ₪ 0
B14: ברזים | C14: ברז: ידית, סטנדרטי | D14: 1 | E14: ₪ 130.00 | G14: =נתונים[[#This Row],[כמות]]*נתונים[[#This Row],[עלות משוערת]] -> ₪ 130 | H14: =נתונים[[#This Row],[כמות]]*נתונים[[#This Row],[עלות בפועל]] -> ₪ 0
B15: ריצוף | C15: למינציה (כמות ביחידת רגל מרובע) | D15: 165 | E15: ₪ 3.50 | G15: =נתונים[[#This Row],[כמות]]*נתונים[[#This Row],[עלות משוערת]] -> ₪ 578 | H15: =נתונים[[#This Row],[כמות]]*נתונים[[#This Row],[עלות בפועל]] -> ₪ 0
B16: מכשירי כביסה | C16: מכונת כביסה: סטנדרטי | D16: 1 | E16: ₪ 500.00 | G16: =נתונים[[#This Row],[כמות]]*נתונים[[#This Row],[עלות משוערת]] -> ₪ 500 | H16: =נתונים[[#This Row],[כמות]]*נתונים[[#This Row],[עלות בפועל]] -> ₪ 0
B17: מכשירי כביסה | C17: מייבש כביסה: סטנדרטי | D17: 1 | E17: ₪ 375.00 | G17: =נתונים[[#This Row],[כמות]]*נתונים[[#This Row],[עלות משוערת]] -> ₪ 375 | H17: =נתונים[[#This Row],[כמות]]*נתונים[[#This Row],[עלות בפועל]] -> ₪ 0
B18: תאורה | C18: תאורה: גוף תאורה שקוע | D18: 4 | E18: ₪ 35.00 | G18: =נתונים[[#This Row],[כמות]]*נתונים[[#This Row],[עלות משוערת]] -> ₪ 140 | H18: =נתונים[[#This Row],[כמות]]*נתונים[[#This Row],[עלות בפועל]] -> ₪ 0
B19: מקררים | C19: מקרר: נפרד, יוקרתי | D19: 1 | E19: ₪ 1,200.00 | G19: =נתונים[[#This Row],[כמות]]*נתונים[[#This Row],[עלות משוערת]] -> ₪ 1,200 | H19: =נתונים[[#This Row],[כמות]]*נתונים[[#This Row],[עלות בפועל]] -> ₪ 0
B20: כיורים | C20: כיור כפול יוקרתי עשוי פלדת אלחלד | D20: 1 | E20: ₪ 125.00 | G20: =נתונים[[#This Row],[כמות]]*נתונים[[#This Row],[עלות משוערת]] -> ₪ 125 | H20: =נתונים[[#This Row],[כמות]]*נתונים[[#This Row],[עלות בפועל]] -> ₪ 0
B21: אוורור | C21: יחידת כיסוי: מוארך - סטנדרטי | D21: 1 | E21: ₪ 180.00 | G21: =נתונים[[#This Row],[כמות]]*נתונים[[#This Row],[עלות משוערת]] -> ₪ 180 | H21: =נתונים[[#This Row],[כמות]]*נתונים[[#This Row],[עלות בפועל]] -> ₪ 0
B22: קירות | C22: בנייה בגבס (כמות ביחידת רגל מרובע) | D22: 70 | E22: ₪ 2.00 | G22: =נתונים[[#This Row],[כמות]]*נתונים[[#This Row],[עלות משוערת]] -> ₪ 140 | H22: =נתונים[[#This Row],[כמות]]*נתונים[[#This Row],[עלות בפועל]] -> ₪ 0
B23: חלונות | C23: הזזה | D23: 2 | E23: ₪ 120.00 | G23: =נתונים[[#This Row],[כמות]]*נתונים[[#This Row],[עלות משוערת]] -> ₪ 240 | H23: =נתונים[[#This Row],[כמות]]*נתונים[[#This Row],[עלות בפועל]] -> ₪ 0
B24: אחר | G24: =נתונים[[#This Row],[כמות]]*נתונים[[#This Row],[עלות משוערת]] -> ₪ 0 | H24: =נתונים[[#This Row],[כמות]]*נתונים[[#This Row],[עלות בפועל]] -> ₪ 0
B25: סה"כ | E25: =SUBTOTAL(109,נתונים[עלות משוערת]) -> ₪ 4,014.00 | F25: =SUBTOTAL(109,נתונים[עלות בפועל]) -> ₪ 0.00 | G25: =SUBTOTAL(109,נתונים[עלות משוערת כוללת]) -> ₪ 5,375.00 | H25: =SUBTOTAL(109,נתונים[עלות כוללת בפועל]) -> ₪ 0.00
B26: סכום ביניים | G26: =SUBTOTAL(109,נתונים[עלות משוערת כוללת]) -> ₪ 5,375.00 | H26: =SUBTOTAL(109,נתונים[עלות כוללת בפועל]) -> ₪ 0.00
B27: עלויות לא צפויות - הוסף 30% | G27: =G26*0.3 -> ₪ 1,612.50 | H27: =H26*0.3 -> ₪ 0.00
B28: סך הכל | G28: =SUM(G26:G27) -> ₪ 6,987.50 | H28: =SUM(H26:H27) -> ₪ 0.00
